[Event "Open Nuevo Centro. Jornada 2"]
[Site "Chess.com"]
[Date "2020.06.26"]
[Round "3"]
[White "Birnoveanu, Petru"]
[Black "SIMARRO PEIRÓ, ANDRÉS"]
[Result "1-0"]
[WhiteElo "1695"]
[BlackElo "1084"]
[TimeControl "180+2"]
[EndTime "10:57:40 PDT"]
[Termination "Victoria de piculet por jaque mate"]

1. e4 {[%clk 0:03:01.9]} 1... e5 {[%clk 0:02:57.8]} 2. Bc4 {[%clk 0:03:00.2]}
2... Nf6 {[%clk 0:02:54.3]} 3. Nf3 {[%clk 0:02:50.1]} 3... Bc5 {[%clk
0:02:44.3]} 4. O-O {[%clk 0:02:49.3]} 4... Nc6 {[%clk 0:02:41.1]} 5. d4 {[%clk
0:02:49]} 5... exd4 {[%clk 0:02:39.2]} 6. e5 {[%clk 0:02:46.8]} 6... Ng4 {[%clk
0:02:33.2]} 7. h3 {[%clk 0:02:46.5]} 7... Ngxe5 {[%clk 0:02:33.1]} 8. Nxe5
{[%clk 0:02:46.4]} 8... Nxe5 {[%clk 0:02:31.9]} 9. Re1 {[%clk 0:02:46.5]} 9...
d6 {[%clk 0:02:25.5]} 10. f4 {[%clk 0:02:45.8]} 10... d3+ {[%clk 0:02:01.6]} 11.
Kh1 {[%clk 0:02:44.4]} 11... dxc2 {[%clk 0:01:57.4]} 12. Qxc2 {[%clk 0:02:42.2]}
12... O-O {[%clk 0:01:55.6]} 13. fxe5 {[%clk 0:02:41.8]} 13... dxe5 {[%clk
0:01:55.2]} 14. Be3 {[%clk 0:02:38.6]} 14... Bb4 {[%clk 0:01:52.8]} 15. Nc3
{[%clk 0:02:35.5]} 15... Be6 {[%clk 0:01:44.8]} 16. Bxe6 {[%clk 0:02:34.6]}
16... fxe6 {[%clk 0:01:42.4]} 17. Qb3 {[%clk 0:02:28.9]} 17... Qd6 {[%clk
0:01:30]} 18. Ne4 {[%clk 0:02:15.6]} 18... Qb6 {[%clk 0:01:23.4]} 19. Bxb6
{[%clk 0:02:14.5]} 19... Bxe1 {[%clk 0:01:20]} 20. Rxe1 {[%clk 0:02:10.1]} 20...
axb6 {[%clk 0:01:15.1]} 21. Qxe6+ {[%clk 0:02:10]} 21... Rf7 {[%clk 0:01:14.3]}
22. Ng5 {[%clk 0:02:09.5]} 22... Rf8 {[%clk 0:01:10.3]} 23. Nxf7 {[%clk
0:02:07.9]} 23... Rxf7 {[%clk 0:01:10.8]} 24. Rf1 {[%clk 0:02:08.1]} 24... g5
{[%clk 0:01:04.3]} 25. Rxf7 {[%clk 0:02:06.6]} 25... Kh8 {[%clk 0:01:01.3]} 26.
Qe8# {[%clk 0:02:07.1]} 1

[Event "Open Nuevo Centro. Jornada 2"]
[Site "Chess.com"]
[Date "2020.06.26"]
[Round "3"]
[White "Gómez Alonso, Óscar"]
[Black "Saiz Sapena, Veronica"]
[Result "1-0"]
[WhiteElo "1861"]
[BlackElo "1552"]
[TimeControl "180+2"]
[EndTime "10:57:42 PDT"]
[Termination "Victoria de osgo78 por abandono"]

1. d4 {[%clk 0:03:00]} 1... d5 {[%clk 0:03:00.5]} 2. c4 {[%clk 0:03:00.9]} 2...
c6 {[%clk 0:03:00.8]} 3. cxd5 {[%clk 0:03:01.2]} 3... cxd5 {[%clk 0:03:01.6]} 4.
Nc3 {[%clk 0:03:03.1]} 4... Nf6 {[%clk 0:03:00.8]} 5. Nf3 {[%clk 0:03:02.8]}
5... Nc6 {[%clk 0:02:56.5]} 6. Bf4 {[%clk 0:03:02.9]} 6... a6 {[%clk 0:02:56.1]}
7. e3 {[%clk 0:03:03.3]} 7... e6 {[%clk 0:02:56.1]} 8. Bd3 {[%clk 0:03:03.8]}
8... Ba3 {[%clk 0:02:51.3]} 9. bxa3 {[%clk 0:03:01.1]} 9... O-O {[%clk
0:02:42.6]} 10. O-O {[%clk 0:03:00.3]} 10... b5 {[%clk 0:02:40.7]} 11. Rc1
{[%clk 0:02:47.4]} 11... Na5 {[%clk 0:02:38]} 12. Ne5 {[%clk 0:02:41.9]} 12...
Bb7 {[%clk 0:02:34.6]} 13. Ne2 {[%clk 0:02:34.6]} 13... Nc4 {[%clk 0:02:33.2]}
14. Bxc4 {[%clk 0:02:02.1]} 14... bxc4 {[%clk 0:02:33.3]} 15. Nc3 {[%clk
0:01:59.1]} 15... Nd7 {[%clk 0:02:20.1]} 16. Nxd7 {[%clk 0:01:59.3]} 16... Qxd7
{[%clk 0:02:20.6]} 17. Rb1 {[%clk 0:01:58.8]} 17... Bc6 {[%clk 0:02:16.3]} 18.
a4 {[%clk 0:01:58.5]} 18... f6 {[%clk 0:02:10.3]} 19. Qc2 {[%clk 0:01:53.4]}
19... g5 {[%clk 0:02:05.6]} 20. Bg3 {[%clk 0:01:53.7]} 20... Rf7 {[%clk
0:01:55.7]} 21. e4 {[%clk 0:01:47]} 21... h5 {[%clk 0:01:52]} 22. h4 {[%clk
0:01:45.9]} 22... g4 {[%clk 0:01:44.6]} 23. exd5 {[%clk 0:01:46]} 23... exd5
{[%clk 0:01:44.4]} 24. Qg6+ {[%clk 0:01:45.4]} 24... Rg7 {[%clk 0:01:39.7]} 25.
Qxh5 {[%clk 0:01:39.9]} 25... Bxa4 {[%clk 0:01:40.1]} 26. Nxa4 {[%clk
0:01:38.9]} 26... Qxa4 {[%clk 0:01:40.3]} 27. Qxd5+ {[%clk 0:01:39.8]} 1

[Event "Open Nuevo Centro. Jornada 2"]
[Site "Chess.com"]
[Date "2020.06.26"]
[Round "3"]
[White "Martínez Albelda, Mariela"]
[Black "Martínez Cuenca, Adrián "]
[Result "1-0"]
[WhiteElo "1007"]
[BlackElo "589"]
[TimeControl "180+2"]
[EndTime "10:57:44 PDT"]
[Termination "Victoria de laranita303 por jaque mate"]

1. d4 {[%clk 0:03:01.9]} 1... d5 {[%clk 0:02:58.9]} 2. c4 {[%clk 0:03:02.2]}
2... dxc4 {[%clk 0:02:48.9]} 3. e3 {[%clk 0:03:03.2]} 3... f6 {[%clk 0:02:41.6]}
4. Bxc4 {[%clk 0:03:03.9]} 4... e5 {[%clk 0:02:41.3]} 5. Nc3 {[%clk 0:03:00.7]}
5... exd4 {[%clk 0:02:41.1]} 6. Qxd4 {[%clk 0:02:59.3]} 6... Qxd4 {[%clk
0:02:39.3]} 7. exd4 {[%clk 0:03:00]} 7... Ne7 {[%clk 0:02:29.9]} 8. Nb5 {[%clk
0:02:59.8]} 8... c6 {[%clk 0:02:30.2]} 9. Nc7+ {[%clk 0:03:00.2]} 9... Kd8
{[%clk 0:02:25.7]} 10. Nxa8 {[%clk 0:03:01.1]} 10... Ng6 {[%clk 0:02:19.2]} 11.
f4 {[%clk 0:02:56.4]} 11... Bb4+ {[%clk 0:02:17.7]} 12. Kd1 {[%clk 0:02:52.6]}
12... Bg4+ {[%clk 0:02:14.6]} 13. Nf3 {[%clk 0:02:52]} 13... Bh5 {[%clk
0:02:11.7]} 14. f5 {[%clk 0:02:49.9]} 14... Ne7 {[%clk 0:02:03.1]} 15. Bf4
{[%clk 0:02:47.5]} 15... Nxf5 {[%clk 0:02:01.6]} 16. Nc7 {[%clk 0:02:48.1]}
16... Nd6 {[%clk 0:01:48.3]} 17. Ne6+ {[%clk 0:02:46.2]} 17... Ke7 {[%clk
0:01:39.8]} 18. Nxg7 {[%clk 0:02:42.8]} 18... Kf8 {[%clk 0:01:38.9]} 19. Nxh5
{[%clk 0:02:39.5]} 19... Rg8 {[%clk 0:01:33.9]} 20. Bxd6+ {[%clk 0:02:39.1]}
20... Ke8 {[%clk 0:01:27.5]} 21. Nxf6+ {[%clk 0:02:39.5]} 21... Kd8 {[%clk
0:01:24.6]} 22. Nxg8 {[%clk 0:02:39.9]} 22... h5 {[%clk 0:01:22.8]} 23. Bxb8
{[%clk 0:02:39.6]} 23... Kc8 {[%clk 0:01:21.9]} 24. Be5 {[%clk 0:02:38.7]} 24...
b5 {[%clk 0:01:18.9]} 25. Be6+ {[%clk 0:02:37.6]} 25... Kd8 {[%clk 0:01:12.6]}
26. Bf6+ {[%clk 0:02:38.1]} 26... Ke8 {[%clk 0:01:08]} 27. Rc1 {[%clk
0:02:28.6]} 27... Kf8 {[%clk 0:00:55.8]} 28. Rxc6 {[%clk 0:02:28.8]} 28... Ke8
{[%clk 0:00:51.2]} 29. Rc8# {[%clk 0:02:28.3]} 1

[Event "Open Nuevo Centro. Jornada 2"]
[Site "Chess.com"]
[Date "2020.06.26"]
[Round "3"]
[White "Salvador Buiza, Victor"]
[Black "Méndez Giménez , Néstor Emmanuel"]
[Result "1-0"]
[WhiteElo "1743"]
[BlackElo "1099"]
[TimeControl "180+2"]
[EndTime "10:58:25 PDT"]
[Termination "Victoria de TERROROSCURO666 por jaque mate"]

1. e4 {[%clk 0:03:01.9]} 1... e6 {[%clk 0:03:00.7]} 2. d4 {[%clk 0:03:02.6]}
2... c5 {[%clk 0:03:01]} 3. c3 {[%clk 0:03:01.9]} 3... Nc6 {[%clk 0:03:01.7]} 4.
Nf3 {[%clk 0:03:02]} 4... Qb6 {[%clk 0:03:00.7]} 5. Be2 {[%clk 0:02:59]} 5...
cxd4 {[%clk 0:03:00]} 6. cxd4 {[%clk 0:02:59.6]} 6... Nf6 {[%clk 0:02:59.3]} 7.
Nc3 {[%clk 0:02:58.8]} 7... Bb4 {[%clk 0:02:58]} 8. e5 {[%clk 0:02:53.3]} 8...
Ne4 {[%clk 0:02:57]} 9. Bd2 {[%clk 0:02:28.7]} 9... Nxd4 {[%clk 0:02:55.4]} 10.
Nxe4 {[%clk 0:02:10.3]} 10... Nxf3+ {[%clk 0:02:54.5]} 11. Bxf3 {[%clk
0:02:10.8]} 11... Bxd2+ {[%clk 0:02:49.6]} 12. Qxd2 {[%clk 0:02:11]} 12... d5
{[%clk 0:02:49.9]} 13. exd6 {[%clk 0:02:04.6]} 13... O-O {[%clk 0:02:45.8]} 14.
O-O {[%clk 0:02:03.9]} 14... Bd7 {[%clk 0:02:45]} 15. Qg5 {[%clk 0:02:02.3]}
15... Qxb2 {[%clk 0:02:42.5]} 16. Rab1 {[%clk 0:01:54.9]} 16... Qd4 {[%clk
0:02:30.5]} 17. Rfd1 {[%clk 0:01:51.3]} 17... Qa4 {[%clk 0:02:10.5]} 18. Nc5
{[%clk 0:01:31.8]} 18... Qc6 {[%clk 0:02:01.2]} 19. Bxc6 {[%clk 0:01:31.9]}
19... Bxc6 {[%clk 0:02:01.3]} 20. Nxb7 {[%clk 0:01:28.1]} 20... Rab8 {[%clk
0:02:01.1]} 21. Nc5 {[%clk 0:01:26.1]} 21... Rxb1 {[%clk 0:01:57.1]} 22. Rxb1
{[%clk 0:01:26.6]} 22... f6 {[%clk 0:01:57.3]} 23. Qe3 {[%clk 0:01:24.2]} 23...
g5 {[%clk 0:01:51.7]} 24. Qxe6+ {[%clk 0:01:23.2]} 24... Kh8 {[%clk 0:01:46.6]}
25. Qe7 {[%clk 0:01:24]} 25... Re8 {[%clk 0:01:42.2]} 26. Qxf6+ {[%clk
0:01:23.8]} 26... Kg8 {[%clk 0:01:41.8]} 27. Ne6 {[%clk 0:01:23.6]} 27... Rxe6
{[%clk 0:01:29.3]} 28. Qxe6+ {[%clk 0:01:24]} 28... Kg7 {[%clk 0:01:29.5]} 29.
Qe7+ {[%clk 0:01:20.6]} 29... Kg8 {[%clk 0:01:29.4]} 30. Rb8+ {[%clk 0:01:20.4]}
30... Be8 {[%clk 0:01:28]} 31. Rxe8# {[%clk 0:01:21.6]} 1

[Event "Open Nuevo Centro. Jornada 2"]
[Site "Chess.com"]
[Date "2020.06.26"]
[Round "3"]
[White "Casado Andreu, David"]
[Black "Morata Briones, Carlos"]
[Result "1-0"]
[WhiteElo "1642"]
[BlackElo "853"]
[TimeControl "180+2"]
[EndTime "10:58:27 PDT"]
[Termination "Victoria de dave6635 por jaque mate"]

1. e4 {[%clk 0:03:01.9]} 1... e5 {[%clk 0:03:00.6]} 2. Nf3 {[%clk 0:03:02.8]}
2... Nc6 {[%clk 0:03:00.9]} 3. Bc4 {[%clk 0:03:02.7]} 3... Nf6 {[%clk
0:03:00.7]} 4. Ng5 {[%clk 0:03:02.2]} 4... Qe7 {[%clk 0:02:42.3]} 5. Bxf7+
{[%clk 0:03:01.6]} 5... Kd8 {[%clk 0:02:39.1]} 6. Bb3 {[%clk 0:02:59.9]} 6...
Ke8 {[%clk 0:02:39.4]} 7. O-O {[%clk 0:02:57.5]} 7... Nh5 {[%clk 0:02:33.1]} 8.
Qxh5+ {[%clk 0:02:56.7]} 8... g6 {[%clk 0:02:33]} 9. Qg4 {[%clk 0:02:34.5]} 9...
d6 {[%clk 0:02:29.9]} 10. Qg3 {[%clk 0:02:33.9]} 10... Bh6 {[%clk 0:02:25.3]}
11. Nf3 {[%clk 0:02:28.6]} 11... Nd4 {[%clk 0:02:21.3]} 12. Nxd4 {[%clk
0:02:28.9]} 12... exd4 {[%clk 0:02:17.8]} 13. d3 {[%clk 0:02:30]} 13... Qe5
{[%clk 0:02:14]} 14. Bxh6 {[%clk 0:02:29.7]} 14... Qh5 {[%clk 0:02:05.6]} 15.
Bg7 {[%clk 0:02:25]} 15... Rf8 {[%clk 0:01:55.9]} 16. Bxf8 {[%clk 0:02:25]}
16... Kxf8 {[%clk 0:01:56.5]} 17. Qf4+ {[%clk 0:02:24.5]} 17... Kg7 {[%clk
0:01:51.6]} 18. Nd2 {[%clk 0:02:16.9]} 18... Bd7 {[%clk 0:01:48.3]} 19. Nf3
{[%clk 0:02:16.3]} 19... Rf8 {[%clk 0:01:46.5]} 20. Qg3 {[%clk 0:02:17.3]} 20...
Bg4 {[%clk 0:01:42.8]} 21. e5 {[%clk 0:02:06.6]} 21... Bxf3 {[%clk 0:01:37.6]}
22. gxf3 {[%clk 0:02:02.6]} 22... Rxf3 {[%clk 0:01:37.8]} 23. Qg2 {[%clk
0:01:51.2]} 23... dxe5 {[%clk 0:01:37.1]} 24. Rae1 {[%clk 0:01:48.7]} 24... Rh3
{[%clk 0:01:26.4]} 25. Rxe5 {[%clk 0:01:47]} 25... Qh6 {[%clk 0:01:10.2]} 26.
Re7+ {[%clk 0:01:40.6]} 26... Kf8 {[%clk 0:01:08.6]} 27. Rf7+ {[%clk 0:01:39.7]}
27... Ke8 {[%clk 0:01:07.4]} 28. Qe4+ {[%clk 0:01:39.1]} 28... Kd8 {[%clk
0:01:05.5]} 29. Qe7+ {[%clk 0:01:35.6]} 29... Kc8 {[%clk 0:01:02.5]} 30. Qxc7#
{[%clk 0:01:37.5]} 1

[Event "Open Nuevo Centro. Jornada 2"]
[Site "Chess.com"]
[Date "2020.06.26"]
[Round "3"]
[White "Ferrando Lacruz, Nicolás "]
[Black "Rojo Everss, Noel"]
[Result "1-0"]
[WhiteElo "1211"]
[BlackElo "726"]
[TimeControl "180+2"]
[EndTime "10:58:33 PDT"]
[Termination "Victoria de Nicolasvlc por jaque mate"]

1. d4 {[%clk 0:03:00.6]} 1... e5 {[%clk 0:02:20.4]} 2. Nf3 {[%clk 0:02:57.5]}
2... Bb4+ {[%clk 0:02:18.5]} 3. Nc3 {[%clk 0:02:52.2]} 3... Nf6 {[%clk 0:02:15]}
4. e3 {[%clk 0:02:51.5]} 4... d6 {[%clk 0:02:09.8]} 5. Bb5+ {[%clk 0:02:51.2]}
5... Nc6 {[%clk 0:02:07]} 6. Bd2 {[%clk 0:02:50]} 6... Bg4 {[%clk 0:02:06.4]} 7.
Qc1 {[%clk 0:02:44.2]} 7... Bf5 {[%clk 0:02:03.1]} 8. e4 {[%clk 0:02:39.7]} 8...
Bxe4 {[%clk 0:02:01.3]} 9. Nxe4 {[%clk 0:02:38.4]} 9... Nxe4 {[%clk 0:02:02]}
10. Bxb4 {[%clk 0:02:33.4]} 10... O-O {[%clk 0:01:53.7]} 11. Bxc6 {[%clk
0:02:25.5]} 11... Nf6 {[%clk 0:01:42.1]} 12. Bxb7 {[%clk 0:02:24]} 12... Rb8
{[%clk 0:01:40.8]} 13. Bxd6 {[%clk 0:02:13]} 13... Qxd6 {[%clk 0:01:37.7]} 14.
Be4 {[%clk 0:01:51.4]} 14... Nxe4 {[%clk 0:01:36.6]} 15. Qe3 {[%clk 0:01:44.4]}
15... Nd2 {[%clk 0:01:30.1]} 16. Nxd2 {[%clk 0:01:42.3]} 16... Qe6 {[%clk
0:01:21.2]} 17. Nf3 {[%clk 0:01:39.1]} 17... Rxb2 {[%clk 0:01:18.6]} 18. Ng5
{[%clk 0:01:38.3]} 18... Qh6 {[%clk 0:01:05.9]} 19. h4 {[%clk 0:01:24.8]} 19...
Rxc2 {[%clk 0:00:57.3]} 20. Qe4 {[%clk 0:01:20.6]} 20... Qxg5 {[%clk 0:00:48.8]}
21. hxg5 {[%clk 0:01:19.7]} 21... Rxf2 {[%clk 0:00:44.7]} 22. Qxh7# {[%clk
0:01:15.8]} 1

[Event "Open Nuevo Centro. Jornada 2"]
[Site "Chess.com"]
[Date "2020.06.26"]
[Round "3"]
[White "Gutierrez Marco, Dario"]
[Black "Ulla Centelles, Llorens"]
[Result "1-0"]
[WhiteElo "1906"]
[BlackElo "1579"]
[TimeControl "180+2"]
[EndTime "10:58:52 PDT"]
[Termination "Victoria de rususs por jaque mate"]

1. e4 {[%clk 0:02:15.3]} 1... e5 {[%clk 0:03:00.2]} 2. Nf3 {[%clk 0:02:16.1]}
2... d6 {[%clk 0:03:00.6]} 3. d4 {[%clk 0:02:16.2]} 3... exd4 {[%clk 0:03:00.5]}
4. Nxd4 {[%clk 0:02:17.4]} 4... Bd7 {[%clk 0:03:01]} 5. Nc3 {[%clk 0:02:18.5]}
5... Nc6 {[%clk 0:03:01.8]} 6. Be3 {[%clk 0:02:19.6]} 6... Ne5 {[%clk
0:03:02.5]} 7. h3 {[%clk 0:02:17]} 7... Nf6 {[%clk 0:03:00.5]} 8. f4 {[%clk
0:02:16.4]} 8... Ng6 {[%clk 0:03:00.4]} 9. Bc4 {[%clk 0:02:17.1]} 9... Qc8
{[%clk 0:02:59.2]} 10. Qf3 {[%clk 0:02:10]} 10... Nh4 {[%clk 0:02:55.5]} 11. Qg3
{[%clk 0:02:05.7]} 11... Ng6 {[%clk 0:02:53.4]} 12. O-O-O {[%clk 0:02:00.9]}
12... Be7 {[%clk 0:02:54]} 13. Rdf1 {[%clk 0:01:55.9]} 13... h5 {[%clk
0:02:54.3]} 14. e5 {[%clk 0:01:42.7]} 14... h4 {[%clk 0:02:51.2]} 15. Qh2 {[%clk
0:01:42.7]} 15... Nh5 {[%clk 0:02:51.9]} 16. Rf3 {[%clk 0:01:04.6]} 16... Ng3
{[%clk 0:02:52.5]} 17. Re1 {[%clk 0:01:01.2]} 17... c5 {[%clk 0:02:45.7]} 18.
Ndb5 {[%clk 0:00:51.3]} 18... Bxb5 {[%clk 0:02:42.3]} 19. Bxb5+ {[%clk
0:00:51.2]} 19... Kf8 {[%clk 0:02:43]} 20. Bf2 {[%clk 0:00:42.6]} 20... a6
{[%clk 0:02:43.4]} 21. Bd3 {[%clk 0:00:41.2]} 21... b5 {[%clk 0:02:36.5]} 22.
Bxg6 {[%clk 0:00:40]} 22... fxg6 {[%clk 0:02:35.6]} 23. Bxg3 {[%clk 0:00:41.2]}
23... hxg3 {[%clk 0:02:35.8]} 24. Qxg3 {[%clk 0:00:43.1]} 24... Bh4 {[%clk
0:02:36.9]} 25. Qxg6 {[%clk 0:00:41.3]} 25... Bxe1 {[%clk 0:02:37.6]} 26. Qxd6+
{[%clk 0:00:42.2]} 26... Kg8 {[%clk 0:02:27.3]} 27. Nd5 {[%clk 0:00:38.1]} 27...
Ra7 {[%clk 0:02:17]} 28. Ne7+ {[%clk 0:00:32.6]} 28... Rxe7 {[%clk 0:02:16.9]}
29. Qxe7 {[%clk 0:00:34.5]} 29... Qf5 {[%clk 0:02:17.2]} 30. g4 {[%clk
0:00:27.4]} 30... Qf7 {[%clk 0:02:16.2]} 31. Qxc5 {[%clk 0:00:21.1]} 31... Qxa2
{[%clk 0:02:16.5]} 32. Qc8+ {[%clk 0:00:19.7]} 32... Kh7 {[%clk 0:02:16.5]} 33.
Qf5+ {[%clk 0:00:20.7]} 33... g6 {[%clk 0:02:16.2]} 34. Qd7+ {[%clk 0:00:20.2]}
34... Kh6 {[%clk 0:02:16.3]} 35. g5+ {[%clk 0:00:19.9]} 35... Kh5 {[%clk
0:02:15.3]} 36. Qg4# {[%clk 0:00:21.8]} 1

[Event "Open Nuevo Centro. Jornada 2"]
[Site "Chess.com"]
[Date "2020.06.26"]
[Round "3"]
[White "Donate Moreno, David"]
[Black "Montesinos Diaz, Luis"]
[Result "0-1"]
[WhiteElo "1519"]
[BlackElo "1869"]
[TimeControl "180+2"]
[EndTime "10:58:57 PDT"]
[Termination "Victoria de Gwiso_06 por jaque mate"]

1. e4 {[%clk 0:03:01.9]} 1... c6 {[%clk 0:02:49.5]} 2. d4 {[%clk 0:02:57.9]}
2... d5 {[%clk 0:02:42.4]} 3. exd5 {[%clk 0:02:57.3]} 3... cxd5 {[%clk
0:02:40.9]} 4. Nf3 {[%clk 0:02:57.5]} 4... Nf6 {[%clk 0:02:25]} 5. Ne5 {[%clk
0:02:48.5]} 5... Nc6 {[%clk 0:02:19.2]} 6. Bb5 {[%clk 0:02:43.7]} 6... Bd7
{[%clk 0:02:20.5]} 7. Nxd7 {[%clk 0:02:44.4]} 7... Qxd7 {[%clk 0:02:21.5]} 8. c3
{[%clk 0:02:44.2]} 8... e6 {[%clk 0:02:22.6]} 9. Bf4 {[%clk 0:02:41.4]} 9... a6
{[%clk 0:02:22.1]} 10. Bd3 {[%clk 0:02:41.6]} 10... Bd6 {[%clk 0:02:21.1]} 11.
Bxd6 {[%clk 0:02:31.7]} 11... Qxd6 {[%clk 0:02:23]} 12. Nd2 {[%clk 0:02:32.5]}
12... O-O {[%clk 0:02:22.5]} 13. Nf3 {[%clk 0:02:26.9]} 13... b5 {[%clk
0:02:19.3]} 14. Qe2 {[%clk 0:02:26.8]} 14... b4 {[%clk 0:02:18.8]} 15. Ne5
{[%clk 0:02:11.9]} 15... bxc3 {[%clk 0:02:14.5]} 16. bxc3 {[%clk 0:02:13.7]}
16... Rfc8 {[%clk 0:02:14.2]} 17. O-O {[%clk 0:02:08.3]} 17... Na5 {[%clk
0:02:05.4]} 18. Rfd1 {[%clk 0:02:04.1]} 18... Rxc3 {[%clk 0:02:02.9]} 19. Bxa6
{[%clk 0:02:01.8]} 19... Qxa6 {[%clk 0:02:00.7]} 20. Qb2 {[%clk 0:01:50.1]}
20... Rac8 {[%clk 0:01:57.6]} 21. Nd3 {[%clk 0:01:43.3]} 21... Rxd3 {[%clk
0:01:54.7]} 22. Rxd3 {[%clk 0:01:39.8]} 22... Qxd3 {[%clk 0:01:56.6]} 23. Rc1
{[%clk 0:01:39.3]} 23... Rxc1+ {[%clk 0:01:56.2]} 24. Qxc1 {[%clk 0:01:40.8]}
24... Nc4 {[%clk 0:01:56.7]} 25. a4 {[%clk 0:01:34.3]} 25... h6 {[%clk
0:01:54.3]} 26. a5 {[%clk 0:01:34]} 26... Nxa5 {[%clk 0:01:54.6]} 27. Qa1 {[%clk
0:01:32.2]} 27... Nc4 {[%clk 0:01:54.1]} 28. f4 {[%clk 0:01:30.2]} 28... Ne4
{[%clk 0:01:52.5]} 29. g3 {[%clk 0:01:28]} 29... Qe3+ {[%clk 0:01:52.8]} 30. Kg2
{[%clk 0:01:24.7]} 30... Qf2+ {[%clk 0:01:49]} 31. Kh3 {[%clk 0:01:24.9]} 31...
Ncd2 {[%clk 0:01:44]} 32. f5 {[%clk 0:01:09.5]} 32... Nf3 {[%clk 0:01:42.7]} 33.
Qh1 {[%clk 0:01:06.2]} 33... Neg5+ {[%clk 0:01:41.5]} 34. Kg4 {[%clk 0:01:05.7]}
34... Qxd4+ {[%clk 0:01:42.3]} 35. Kh5 {[%clk 0:01:04.9]} 35... Kh7 {[%clk
0:01:38]} 36. g4 {[%clk 0:01:02.3]} 36... g6+ {[%clk 0:01:37.3]} 37. fxg6+
{[%clk 0:01:03]} 37... fxg6# {[%clk 0:01:39.2]} 0

[Event "Open Nuevo Centro. Jornada 2"]
[Site "Chess.com"]
[Date "2020.06.26"]
[Round "3"]
[White "Elenkov Olmo, Ivan"]
[Black "Cinà Asensio, Luca "]
[Result "0-1"]
[WhiteElo "915"]
[BlackElo "568"]
[TimeControl "180+2"]
[EndTime "10:59:09 PDT"]
[Termination "Victoria de Titanes34 por abandono"]

1. e4 {[%clk 0:03:01.9]} 1... e6 {[%clk 0:02:59.5]} 2. Nc3 {[%clk 0:03:01.3]}
2... Bc5 {[%clk 0:02:58.2]} 3. Nf3 {[%clk 0:02:47.3]} 3... Nf6 {[%clk
0:02:52.9]} 4. g3 {[%clk 0:02:49.1]} 4... Ng4 {[%clk 0:02:51.7]} 5. d4 {[%clk
0:02:43.4]} 5... Bb6 {[%clk 0:02:48.6]} 6. Bh3 {[%clk 0:02:27.7]} 6... Nf6
{[%clk 0:02:42.3]} 7. e5 {[%clk 0:02:24.8]} 7... Nh5 {[%clk 0:02:34.7]} 8. Ng5
{[%clk 0:02:13.8]} 8... O-O {[%clk 0:02:27.1]} 9. Qxh5 {[%clk 0:02:12.9]} 9...
h6 {[%clk 0:02:24.6]} 10. Nge4 {[%clk 0:02:03.5]} 10... Bxd4 {[%clk 0:02:21]}
11. Be3 {[%clk 0:01:42.5]} 11... Bxc3+ {[%clk 0:02:18.9]} 12. bxc3 {[%clk
0:01:42.7]} 12... d5 {[%clk 0:02:17.5]} 13. Nd2 {[%clk 0:01:41.7]} 13... g6
{[%clk 0:02:15.8]} 14. Qxh6 {[%clk 0:01:39.1]} 14... Re8 {[%clk 0:02:10.3]} 15.
O-O {[%clk 0:01:31]} 15... Nd7 {[%clk 0:02:09.5]} 16. Nf3 {[%clk 0:01:25]} 16...
b6 {[%clk 0:02:06.3]} 17. Bd2 {[%clk 0:01:23.9]} 17... Nc5 {[%clk 0:02:04]} 18.
Qf4 {[%clk 0:01:13.2]} 18... Ne4 {[%clk 0:02:01.6]} 19. c4 {[%clk 0:00:54.4]}
19... Nxd2 {[%clk 0:01:54.3]} 20. Qxd2 {[%clk 0:00:54.5]} 20... dxc4 {[%clk
0:01:52.6]} 21. Qxd8 {[%clk 0:00:42.9]} 21... Rxd8 {[%clk 0:01:54.5]} 22. Rfd1
{[%clk 0:00:42.1]} 22... Bb7 {[%clk 0:01:39.5]} 23. Rxd8+ {[%clk 0:00:41.4]}
23... Rxd8 {[%clk 0:01:37.7]} 24. Re1 {[%clk 0:00:36.2]} 24... Bxf3 {[%clk
0:01:37.9]} 25. Re3 {[%clk 0:00:33.3]} 25... Rd1+ {[%clk 0:01:37.6]} 26. Bf1
{[%clk 0:00:32.3]} 26... Bg4 {[%clk 0:01:33.2]} 27. Rc3 {[%clk 0:00:29.9]} 27...
Bh3 {[%clk 0:01:28.9]} 0

[Event "Open Nuevo Centro. Jornada 2"]
[Site "Chess.com"]
[Date "2020.06.26"]
[Round "3"]
[White "Deusa Ballesteros, Lucas "]
[Black "Borissov, Julián"]
[Result "0-1"]
[WhiteElo "1460"]
[BlackElo "1841"]
[TimeControl "180+2"]
[EndTime "10:59:19 PDT"]
[Termination "Victoria de julianborisov por jaque mate"]

1. e4 {[%clk 0:03:01.9]} 1... e5 {[%clk 0:03:00.3]} 2. d4 {[%clk 0:03:02.3]}
2... exd4 {[%clk 0:03:00.2]} 3. Nf3 {[%clk 0:03:01.9]} 3... Nc6 {[%clk
0:02:55.3]} 4. Bc4 {[%clk 0:03:01.8]} 4... Nf6 {[%clk 0:02:54.1]} 5. Ng5 {[%clk
0:02:56.8]} 5... d5 {[%clk 0:02:53]} 6. exd5 {[%clk 0:02:55.2]} 6... Na5 {[%clk
0:02:52.4]} 7. Bb5+ {[%clk 0:02:32.2]} 7... c6 {[%clk 0:02:48.6]} 8. dxc6 {[%clk
0:02:32.1]} 8... bxc6 {[%clk 0:02:49.5]} 9. Bd3 {[%clk 0:02:20.7]} 9... Be7
{[%clk 0:02:42.1]} 10. O-O {[%clk 0:02:18.4]} 10... O-O {[%clk 0:02:38.8]} 11.
Nd2 {[%clk 0:02:13.1]} 11... c5 {[%clk 0:02:22.9]} 12. Nc4 {[%clk 0:02:06.4]}
12... Nxc4 {[%clk 0:02:20.1]} 13. Bxc4 {[%clk 0:02:08.3]} 13... h6 {[%clk
0:02:13]} 14. Nf3 {[%clk 0:02:02.2]} 14... Bb7 {[%clk 0:02:13.5]} 15. Re1 {[%clk
0:01:57.4]} 15... Bd6 {[%clk 0:02:11.2]} 16. Bd2 {[%clk 0:01:43.7]} 16... Ne4
{[%clk 0:02:10.2]} 17. Bd3 {[%clk 0:01:38.8]} 17... f5 {[%clk 0:01:54.6]} 18. b3
{[%clk 0:01:23.1]} 18... Qf6 {[%clk 0:01:47.2]} 19. a4 {[%clk 0:01:07.8]} 19...
Rae8 {[%clk 0:01:47.7]} 20. a5 {[%clk 0:01:06.7]} 20... a6 {[%clk 0:01:47.6]}
21. Bc1 {[%clk 0:00:47.7]} 21... Ng5 {[%clk 0:01:45.9]} 22. Nxg5 {[%clk
0:00:42.4]} 22... hxg5 {[%clk 0:01:47.8]} 23. Rxe8 {[%clk 0:00:35.5]} 23... Rxe8
{[%clk 0:01:47.9]} 24. Bd2 {[%clk 0:00:36.9]} 24... Qh6 {[%clk 0:01:47.1]} 25.
h3 {[%clk 0:00:32.9]} 25... Bc7 {[%clk 0:01:46.3]} 26. Qc1 {[%clk 0:00:30.8]}
26... Qd6 {[%clk 0:01:47]} 27. Bc4+ {[%clk 0:00:11.5]} 27... Kh8 {[%clk
0:01:45.8]} 28. g3 {[%clk 0:00:12.1]} 28... Qc6 {[%clk 0:01:44]} 29. f4 {[%clk
0:00:03.1]} 29... Qg2# {[%clk 0:01:42.9]} 0